bitfinex-derivatives/quotes_BNBF0:USTF0_20250211
["timestamp","ask_amount","ask_price","bid_price","bid_amount"]
[1739296596513,0.31580609,633.3,631.64,0.29031576]
[1739296596713,0.31580609,633.3,631.66,0.31662603]
[1739296596912,0.31580609,633.3,631.67,0.29031576]
[1739296597108,0.31580609,633.3,631.69,0.31661099]
[1739296597312,0.31580609,633.3,631.7,0.29031576]
[1739296597613,0.31580609,633.3,631.72,0.31659596]
[1739296597812,0.31580609,633.3,631.73,0.29032717]
[1739296598009,0.31580609,633.3,631.3,1.18253121]
[1739296598010,0.31580609,633.3,631.75,0.31658092]
[1739296598210,0.31580609,633.3,631.76,0.29032917]
[1739296598413,0.31580609,633.3,631.78,0.31656589]
[1739296598614,0.31580609,633.3,631.79,0.29032917]
[1739296598813,0.31580609,633.3,631.81,0.31655086]
[1739296599010,0.31580609,633.3,631.82,0.29032917]
[1739296599214,0.31580609,633.3,631.84,0.31653583]
[1739296599511,0.31580609,633.3,631.85,0.29032917]
[1739296599817,0.31580609,633.3,631.87,0.3165208]
[1739296600014,0.31580609,633.3,631.88,0.29032917]
[1739296600316,0.31580609,633.3,631.9,0.31650577]
[1739296600516,0.31580609,633.3,631.91,0.29032917]
[1739296600710,0.31580609,633.3,631.92,0.31649575]
[1739296600910,0.31580609,633.3,631.93,0.29032917]
[1739296601116,0.31580609,633.3,631.95,0.31648073]
[1739296601515,0.31580609,633.3,631.96,0.29032917]
[1739296601714,0.31580609,633.3,631.97,0.31647071]
[1739296601912,0.31580609,633.3,631.98,0.29032917]
[1739296602112,0.31580609,633.3,631.99,0.3164607]
[1739296602312,0.31580609,633.3,632.0,0.29032917]
[1739296602514,0.31580609,633.3,632.01,0.31645068]
[1739296602710,0.31580609,633.3,632.02,0.29032917]
[1739296603317,0.31580609,633.3,632.03,0.31644067]
[1739296603517,0.31580609,633.3,632.04,0.29032917]
[1739296603718,0.31580609,633.3,632.05,0.31643066]
[1739296603919,0.31580609,633.3,632.06,0.29032917]
[1739296604120,0.31580609,633.3,632.07,0.31642064]
[1739296604420,0.31580609,633.3,632.08,0.29032917]
[1739296604615,0.31580609,633.3,632.09,0.31641063]
[1739296604916,0.31580609,633.3,632.1,0.29032917]
[1739296605120,0.31580609,633.3,632.11,0.31640062]
[1739296605316,0.31580609,633.3,632.12,0.29032917]
[1739296605515,0.31580609,633.3,632.13,0.31639061]
[1739296605716,0.31580609,633.3,632.14,0.29032917]
[1739296605918,0.31580609,633.3,632.15,0.3163806]
[1739296606121,0.31580609,633.3,632.16,0.29032917]
[1739296606520,0.31580609,633.3,632.15,0.3163806]
[1739296606723,0.31580609,633.3,632.16,0.29027944]
[1739296607020,0.31580609,633.3,632.17,0.29027944]
[1739296607223,0.31580609,633.3,632.16,0.29027944]
[1739296607422,0.31580609,633.3,632.18,0.29027944]
[1739296607617,0.31580609,633.3,632.19,0.29027944]
[1739296613717,0.31580609,633.3,632.18,0.31636559]
[1739296613922,0.31580609,633.3,632.19,0.29031918]
[1739296619031,0.31580609,633.3,632.18,0.31636559]
[1739296619227,0.31580609,633.3,632.19,0.29038653]
[1739296624834,0.31580609,633.3,632.0,1.18253121]
[1739296625033,0.31580609,633.3,632.01,0.29041617]
[1739296625535,0.31580609,633.3,632.0,1.18253121]
[1739296625736,0.31580609,633.3,632.01,0.29041568]
[1739296627235,0.31580609,633.3,631.78,0.29041568]
[1739296627432,0.31580609,633.3,631.77,1.18253121]
[1739296627433,0.31580609,633.3,631.79,0.60699068]
[1739296627637,0.2746094,633.29,631.8,0.2904298]
[1739296627941,0.2746094,633.29,631.79,0.31656088]
[1739296627942,5.98519764,633.28,631.81,0.2904298]
[1739296628134,6.25980704,633.27,631.82,0.2904298]
[1739296628336,6.25980704,633.26,631.83,0.2904298]
[1739296628539,6.25980704,633.25,631.8,0.89767498]
[1739296628734,0.31580609,633.3,631.8,0.89767498]
[1739296628735,6.25980704,633.24,631.81,0.2904298]
[1739296628936,6.25981215,633.23,631.82,0.29045408]
[1739296629142,6.25981215,633.22,631.82,0.89757263]
[1739296629336,6.5756632,633.21,631.83,0.89762872]
[1739296629539,6.5756632,633.21,631.79,0.31656088]
[1739296629540,6.25981222,633.2,631.8,1.47298537]
[1739296629742,6.25981222,633.19,631.81,0.89762872]
[1739296629937,6.25981222,633.18,631.81,0.89762872]
[1739296630142,6.25981222,633.17,631.82,0.29045416]
[1739296630443,6.25981222,633.16,631.83,0.29045416]
[1739296630743,3.87034439,633.15,631.84,0.29045416]
[1739296630941,5.98519764,633.16,631.81,0.29045416]
[1739296631242,5.98519764,633.16,631.82,0.29045812]
[1739296631540,0.31588091,633.15,631.83,0.29045812]
[1739296631737,4.1862253,633.15,631.81,0.29045812]
[1739296632042,4.1862253,633.15,631.82,0.29045812]
[1739296632043,6.79410077,633.15,631.82,0.29045812]
[1739296632236,5.98519764,633.14,631.81,0.29045812]
[1739296632441,5.98519764,633.14,631.82,0.29045812]
[1739296632737,0.31589089,633.13,631.8,1.18253121]
[1739296632939,0.31589089,633.13,631.81,0.29046258]
[1739296634143,0.31589089,633.13,631.82,0.29046258]
[1739296634442,0.31589089,633.13,631.79,0.31656088]
[1739296634644,0.31589089,633.13,631.8,0.2904642]
[1739296636444,0.31589089,633.13,631.79,0.31656088]
[1739296636637,0.31589089,633.13,631.8,0.29046564]
[1739296639447,0.31589089,633.13,631.8,0.60702151]
[1739296639746,0.31589089,633.13,631.81,0.6070165]
[1739296639939,0.31589089,633.13,631.82,0.60697334]
[1739296640139,0.31589089,633.13,631.83,0.60696833]
[1739296640345,0.31589089,633.13,631.55,1.65039066]
[1739296640346,0.31589089,633.13,631.84,0.60696332]
[1739296640539,0.31589089,633.13,631.85,0.60695831]
[1739296640743,0.31589089,633.13,631.86,0.6069533]
[1739296640941,0.31589089,633.13,631.87,0.60694829]
[1739296641140,0.31589089,633.13,631.88,0.29042749]
[1739296643548,0.31589089,633.13,631.89,0.2904569]
[1739296643750,0.31589089,633.13,631.88,0.2904569]
[1739296643941,0.31589089,633.13,631.89,0.2904569]
[1739296644142,0.31589089,633.13,631.88,0.2904569]
[1739296644347,0.31589089,633.13,631.87,0.3165208]
[1739296644544,0.31589089,633.13,631.88,0.2904569]
[1739296644944,0.31589089,633.13,631.89,0.31651078]
[1739296645143,0.31589089,633.13,631.9,0.2904569]
[1739296646748,0.27467617,633.12,631.9,0.2904569]
[1739296646949,0.31589089,633.13,631.89,0.31651078]
[1739296647146,0.27470176,633.12,631.9,0.29054191]
[1739296647650,0.27470176,633.12,631.66,1.18253121]
[1739296647852,0.27470176,633.12,631.67,0.29060061]
[1739296648847,0.31590586,633.1,631.67,0.29060061]
[1739296649154,0.27470176,633.09,631.67,0.29060061]
[1739296649453,0.31592083,633.07,631.67,0.29060061]
[1739296649653,0.27470176,633.06,631.67,0.29060061]
[1739296649852,0.3159358,633.04,631.67,0.29060061]
[1739296650154,0.27470176,633.03,631.67,0.29060061]
[1739296650353,0.31595077,633.01,631.67,0.29060061]
[1739296650854,0.27470176,633.0,631.67,0.29060061]
[1739296651053,0.31596075,632.99,631.39,0.89877172]
[1739296651252,0.27470176,632.98,631.4,0.60735702]
[1739296651447,0.27470176,632.98,631.41,0.607352]
[1739296651753,0.31597074,632.97,631.42,1.2155181]
[1739296651950,0.27470176,632.96,631.43,0.60734197]
[1739296652153,0.31598072,632.95,631.44,0.31673634]
[1739296652452,0.2747428,632.94,631.45,0.29058346]
[1739296652653,0.2747428,632.94,631.46,0.60730977]
[1739296652854,0.2747428,632.94,631.47,0.89881769]
[1739296653057,0.2747428,632.94,631.48,0.29058346]
[1739296653354,0.2747428,632.94,631.46,0.31672631]
[1739296653355,0.2747428,632.94,631.49,0.29058346]
[1739296653554,0.2747428,632.94,631.48,0.29058346]
[1739296653754,0.2747428,632.94,631.49,0.29058346]
[1739296653955,0.2747428,632.94,631.47,0.29058346]
[1739296654150,0.27471965,632.93,631.48,0.29056017]
[1739296654454,0.27471965,632.92,631.49,0.29056017]
[1739296654664,0.59072034,632.91,631.5,0.60726642]
[1739296654979,0.59072533,632.9,631.51,1.21540139]
[1739296655186,0.27471965,632.89,631.52,0.29056017]
[1739296655415,0.27471965,632.89,631.53,0.29056017]
[1739296655575,0.27471965,632.89,631.54,0.60724636]
[1739296655765,0.27471965,632.89,631.55,0.31668118]
[1739296656063,0.27471965,632.89,631.56,0.29056017]
[1739296656265,0.27471965,632.89,631.57,0.60723132]
[1739296656453,0.27471965,632.89,631.58,0.31666613]
[1739296656658,0.27471965,632.89,631.59,0.29056017]
[1739296656854,0.27471965,632.89,631.6,0.31665611]
[1739296657056,0.31600568,632.9,631.61,0.29056017]
[1739296657658,0.31600568,632.9,631.6,0.31665611]
[1739296657858,0.31600568,632.9,631.61,0.29060355]
[1739296659459,0.27480484,632.89,631.61,0.29060355]
[1739296659958,0.31602066,632.87,631.61,0.29060355]
[1739296660158,0.27480484,632.86,631.61,0.29060355]
[1739296660559,0.31603564,632.84,631.61,0.29060355]
[1739296660758,0.27480484,632.83,631.61,0.29060355]
[1739296660963,0.31604563,632.82,631.61,0.29060355]
[1739296661258,0.27480484,632.81,631.61,0.29060355]
[1739296661456,0.31605562,632.8,631.61,0.29060355]
[1739296661661,0.27480484,632.79,631.61,0.29060355]
[1739296661961,0.31606561,632.78,631.61,0.29060355]
[1739296662157,0.27480484,632.77,631.61,0.29060355]
[1739296662363,0.3160756,632.76,631.61,0.29060355]
[1739296662661,0.27480484,632.75,631.61,0.29060355]
[1739296662857,0.59091049,632.74,631.62,0.29066624]
[1739296663064,0.2748249,632.73,631.61,0.29066624]
[1739296663362,0.31609059,632.73,631.62,0.29066624]
[1739296663760,0.31609059,632.73,631.63,0.29066624]
[1739296663966,0.31609059,632.73,631.61,0.29066624]
[1739296664267,0.31609059,632.73,631.62,0.29066624]
[1739296664463,0.27483078,632.72,631.61,0.29066624]
[1739296664672,0.31610058,632.71,631.61,0.29066624]
[1739296666563,0.31610058,632.71,631.62,0.29066171]
[1739296666764,0.31610058,632.71,631.63,0.29066171]
[1739296667074,0.31610058,632.71,631.64,0.29066171]
[1739296667273,0.31610058,632.71,631.65,0.29066171]
[1739296667471,0.31610058,632.71,631.61,0.29066171]
[1739296668367,0.31610058,632.71,631.62,0.29063884]
[1739296668572,0.31610058,632.71,631.63,0.29063884]
[1739296668773,0.31610058,632.71,631.64,0.29063884]
[1739296668967,0.31610058,632.71,631.61,0.29063884]
[1739296669173,0.31610058,632.71,631.62,0.29063884]
[1739296669369,0.31610058,632.71,631.61,0.29063884]
[1739296669570,0.31610058,632.71,631.62,0.29063884]
[1739296669770,0.31610058,632.71,631.6,0.31665611]
[1739296669771,0.31610058,632.71,631.61,0.29063884]
[1739296669972,0.31610058,632.71,631.62,0.29063884]
[1739296670169,0.31610058,632.71,631.63,0.29063929]
[1739296670374,0.27479814,632.7,631.61,0.29063929]
[1739296670675,0.31610058,632.71,631.62,0.29063929]
[1739296670874,0.31610058,632.71,631.63,0.29063929]
[1739296671077,0.31610058,632.71,631.61,0.29063929]
[1739296671275,0.31610058,632.71,631.62,0.29063929]
[1739296671477,0.31610058,632.71,631.61,0.29063929]
[1739296671678,0.31610058,632.71,631.62,0.29063929]
[1739296674577,0.31610058,632.71,631.63,0.31664107]
[1739296674772,0.31610058,632.71,631.64,0.29063929]
[1739296674975,0.31610058,632.71,631.65,0.31663104]
[1739296675176,0.31610058,632.71,631.66,0.29063929]
[1739296675376,0.31610058,632.71,631.65,0.31663104]
[1739296675577,0.31610058,632.71,631.66,0.29063929]
[1739296675879,0.31610058,632.71,631.67,0.31662102]
[1739296676081,0.31610058,632.71,631.68,0.29063929]
[1739296676475,6.02187652,633.54,631.68,0.89824609]
[1739296676677,0.31569642,633.52,631.69,0.31661099]
[1739296676979,6.29653201,633.51,631.7,0.29063929]
[1739296677176,0.31571137,633.49,631.71,0.31660097]
[1739296677378,6.29652728,633.48,631.72,0.29049066]
[1739296677586,0.31572632,633.46,631.73,0.31659094]
[1739296677777,6.02187652,633.45,631.73,0.31659094]
[1739296677987,0.31574128,633.43,631.74,0.29049066]
[1739296678284,0.27465076,633.42,631.75,0.31658092]
[1739296678478,0.31575623,633.4,631.76,0.29049066]
[1739296678680,0.27465076,633.39,631.77,0.3165709]
[1739296678879,0.31577119,633.37,631.78,0.29049066]
[1739296679082,0.27465076,633.36,631.78,0.60705655]
[1739296679277,0.27465076,633.36,631.79,0.29049066]
[1739296679278,0.31578614,633.34,631.79,0.29049066]
[1739296679681,0.31578614,633.34,631.79,0.60705154]
[1739296679881,0.31578614,633.34,631.8,0.29049066]
[1739296681082,0.31578614,633.34,631.81,0.31655086]
[1739296681287,0.27461326,633.33,631.82,0.29049066]
[1739296681482,0.27461326,633.33,631.83,0.31654084]
[1739296681682,0.31579612,633.32,631.84,0.29049066]
[1739296681886,0.27461326,633.31,631.85,0.31653082]
[1739296682084,0.31580609,633.3,631.86,0.29049066]
[1739296682284,0.27462846,633.29,631.87,0.2904681]
[1739296682486,0.31582105,633.27,631.87,0.2904681]
[1739296682689,0.27462846,633.26,631.87,0.2904681]
[1739296682888,0.31583103,633.25,631.87,0.2904681]
[1739296683089,0.27462846,633.24,631.87,0.2904681]
[1739296683289,0.315841,633.23,631.87,0.2904681]
[1739296683490,0.27462846,633.22,631.87,0.2904681]
[1739296683787,0.31585098,633.21,631.87,0.2904681]
[1739296684290,0.27462846,633.2,631.87,0.2904681]
[1739296684482,0.31586095,633.19,631.87,0.2904681]
[1739296690794,0.31586095,633.19,631.87,0.6069889]
[1739296690994,0.31586095,633.19,631.87,0.3165208]
[1739296691195,0.31586095,633.19,631.88,0.29040897]
[1739296693095,0.31586095,633.19,631.89,0.29040897]
[1739296693294,0.31586095,633.19,631.9,0.29040897]
[1739296693495,0.31586095,633.19,631.88,0.29040897]
[1739296693690,0.31586095,633.19,631.87,0.3165208]
[1739296693691,6.02550572,633.18,631.89,0.29040897]
[1739296693889,2.12733717,633.17,631.9,0.29040897]
[1739296694195,2.12733717,633.16,631.91,0.29040897]
[1739296694388,2.12733717,633.15,631.92,0.29040897]
[1739296694589,2.12733717,633.16,631.93,0.29040897]
[1739296694789,2.12733717,633.15,631.93,0.29040897]
[1739296695091,2.60787547,633.17,631.87,0.3165208]
[1739296695092,2.12733717,633.16,631.94,0.29040897]
[1739296695293,2.12733717,633.16,631.87,0.3165208]
[1739296695294,2.12733717,633.16,631.95,0.29040897]
[1739296695492,2.12733717,633.16,631.96,0.29040897]
[1739296695692,2.12733717,633.16,631.97,0.29040897]
[1739296695889,2.12733717,633.16,631.98,0.29040897]
[1739296696089,2.12733717,633.16,631.88,0.29040897]
[1739296696293,2.12733717,633.16,631.89,0.29040897]
[1739296696697,2.12733717,633.18,631.9,0.60691474]
[1739296696889,2.12733717,633.17,631.91,0.60690973]
[1739296697094,2.12733717,633.16,631.92,0.29040897]
[1739296697294,2.12733717,633.15,631.93,0.60689972]
[1739296697490,2.12733717,633.14,631.94,0.89576953]
[1739296697699,2.12733717,633.13,631.94,0.29040897]
[1739296697894,6.02550572,633.17,631.95,0.29040897]
[1739296698097,6.02550572,633.16,631.96,0.29040897]
[1739296698295,6.02550572,633.15,631.95,0.29040897]
[1739296698496,6.02550572,633.14,631.96,0.29040897]
[1739296698798,8.63338119,633.13,631.97,0.29040897]
[1739296698990,6.02550572,633.12,631.98,0.29040897]
[1739296699194,3.89816855,633.11,631.94,0.29040897]
[1739296699391,3.89816855,633.11,631.95,0.29040897]
[1739296699593,2.12733717,633.12,631.96,0.29040897]
[1739296699793,2.60787547,633.13,631.97,0.29040897]
[1739296699993,2.60787547,633.13,631.98,0.29040897]
[1739296700192,2.60787547,633.13,631.94,0.29040897]
[1739296700395,0.31586095,633.19,631.95,0.29040897]
[1739296700596,0.31586095,633.19,631.94,0.29040897]
[1739296700893,0.31586095,633.19,631.93,0.31649075]
[1739296701094,0.31586095,633.19,631.94,0.29040897]
[1739296702095,0.31586095,633.19,631.95,0.2903683]
[1739296702300,0.31586095,633.19,631.96,0.2903683]
[1739296702602,0.31586095,633.19,631.97,0.2903683]
[1739296702792,0.31586095,633.19,631.98,0.2903683]
[1739296702995,0.31586095,633.19,631.99,0.2903683]
[1739296703199,0.31586095,633.19,632.0,0.2903683]
[1739296703394,0.31586095,633.19,631.94,0.2903683]
[1739296703598,0.31586095,633.19,631.95,0.2903683]
[1739296703795,0.31586095,633.19,631.96,0.31647572]
[1739296704002,0.31586095,633.19,631.97,0.2903683]
[1739296704193,0.31586095,633.19,631.96,0.31647572]
[1739296704393,0.31586095,633.19,631.97,0.2903683]
[1739296704796,0.31586095,633.19,631.98,0.31646571]
[1739296704998,0.31586095,633.19,631.99,0.2903683]
[1739296705199,0.31586095,633.19,631.99,0.3164607]
[1739296705701,0.31586095,633.19,632.0,0.29035815]
[1739296707501,0.31586095,633.19,632.01,0.29035828]
[1739296707703,0.31586095,633.19,632.0,0.29035828]
[1739296709298,0.31586095,633.19,632.01,0.29036606]
[1739296709499,0.31586095,633.19,632.02,0.29036606]
[1739296709705,0.31586095,633.19,632.03,0.29036606]
[1739296709905,0.31586095,633.19,632.04,0.29036606]
[1739296710207,0.31586095,633.19,632.05,0.29036606]
[1739296710406,0.31586095,633.19,632.0,0.29036606]
[1739296710602,0.31586095,633.19,632.01,0.29036606]
[1739296710808,0.31586095,633.19,632.0,0.29036606]
[1739296711003,0.31586095,633.19,632.02,0.29036606]
[1739296711205,0.31586095,633.19,632.03,0.29036606]
[1739296711507,0.31586095,633.19,632.04,0.29036606]
[1739296711708,0.31586095,633.19,632.05,0.29036606]
[1739296711907,0.31586095,633.19,632.06,0.29036606]
[1739296712104,0.31586095,633.19,631.99,0.3164607]
[1739296712105,0.31586095,633.19,632.0,0.29036606]
[1739296712308,0.31586095,633.19,632.01,0.29036606]
[1739296712508,0.31586095,633.19,632.02,0.29036606]
[1739296712709,0.31586095,633.19,631.99,0.3164607]
[1739296712905,0.31586095,633.19,632.03,0.2903598]
[1739296713110,0.31586095,633.19,632.04,0.2903598]
[1739296713307,0.31586095,633.19,632.0,0.2903598]
[1739296713505,0.31586095,633.19,632.01,0.2903598]
[1739296713708,0.31586095,633.19,632.0,0.2903598]
[1739296713908,0.31586095,633.19,632.01,0.2903598]
[1739296714111,0.31586095,633.19,632.0,0.2903598]
[1739296714312,0.31586095,633.19,632.01,0.2903598]
[1739296714707,0.31586095,633.19,631.99,0.3164607]
[1739296714708,0.31586095,633.19,632.02,0.29036654]
[1739296714910,0.31586095,633.19,632.0,0.29036654]
[1739296715111,0.31586095,633.19,632.01,0.31645068]
[1739296715411,0.31586095,633.19,632.02,0.29036654]
[1739296715610,0.31586095,633.19,632.03,0.31644067]
[1739296715812,0.31586095,633.19,632.04,0.29036654]
[1739296716011,0.31586095,633.19,632.05,0.31643066]
[1739296716311,0.31586095,633.19,632.06,0.29036654]
[1739296723511,0.31586095,633.19,632.05,0.31643066]
[1739296723710,0.31586095,633.19,632.06,0.29036866]
[1739296724916,0.31586095,633.19,632.06,0.89440021]
[1739296725219,0.31586095,633.19,632.05,1.49896187]
[1739296725516,0.31586095,633.19,632.06,0.29037648]
[1739296725913,0.31586095,633.19,632.06,0.89448389]
[1739296726515,0.31586095,633.19,632.06,0.29037648]
[1739296728922,0.31586095,633.19,632.06,0.89466395]
[1739296729124,0.31586095,633.19,632.06,1.47290769]
[1739296729323,0.31586095,633.19,632.07,0.29037648]
[1739296730928,0.31586095,633.19,632.07,2.07717316]
[1739296731128,0.31586095,633.19,632.08,0.29037648]
[1739296733929,0.31586095,633.19,632.08,0.89477797]
[1739296734829,0.31586095,633.19,632.08,0.29037648]
[1739296735125,6.02550572,633.18,632.08,0.89481777]
[1739296735329,6.02550572,633.17,632.12,1.18253121]
[1739296735526,6.02550572,633.16,632.13,0.29037648]
[1739296735725,6.02550572,633.15,632.13,0.29037648]
[1739296735924,6.02550572,633.14,632.13,0.29037648]
[1739296736124,6.02550572,633.13,632.13,0.29037648]
[1739296736430,6.02550572,633.12,632.13,0.29037648]
[1739296736630,6.02550572,633.11,632.13,0.29037648]
[1739296736823,6.02550572,633.1,632.13,0.29037648]
[1739296737027,6.02550572,633.09,632.13,0.29037648]
[1739296737226,6.02550572,633.08,632.13,0.29037648]
[1739296737428,6.02550572,633.07,632.13,0.29037648]
[1739296737626,6.02550572,633.06,632.13,0.29037648]
[1739296737824,6.02550572,633.05,632.13,0.29037648]
[1739296738029,6.02550572,633.04,632.13,0.29037648]
[1739296738227,2.6218711,633.13,632.13,0.29037648]
[1739296738430,2.6218711,633.13,632.16,1.18253121]
[1739296738731,0.31586095,633.19,632.17,0.29037648]
[1739296742250,0.31586095,633.19,632.11,0.29037648]
[1739296742446,0.31586095,633.19,632.12,0.29037648]
[1739296742647,0.31586095,633.19,632.11,0.29037648]
[1739296742839,0.31586095,633.19,632.12,0.29037648]
[1739296743050,0.31586095,633.19,632.11,0.29037648]
[1739296743241,0.31586095,633.19,632.12,0.29037648]
[1739296743441,0.31586095,633.19,632.11,0.29037648]
[1739296743636,0.31586095,633.19,632.13,0.29037648]
[1739296743835,0.31586095,633.19,632.14,0.29037648]
[1739296744134,0.31586095,633.19,632.15,0.29037648]
[1739296744335,0.31586095,633.19,632.16,0.29037648]
[1739296744531,0.31586095,633.19,632.17,0.31637059]
[1739296744933,0.31586095,633.19,632.18,0.29037648]
[1739296745134,0.31586095,633.19,632.18,0.60674207]
[1739296745329,0.31586095,633.19,632.19,0.29037648]
[1739296752139,0.31586095,633.19,632.18,0.31636559]
[1739296752339,0.31586095,633.19,632.19,0.29031074]
[1739296755742,0.31586095,633.19,632.18,0.31636559]
[1739296756444,0.31586095,633.19,632.19,0.29031846]
[1739296760143,0.31586095,633.19,632.19,0.60667904]
[1739296760346,0.31586095,633.19,632.2,0.60667404]
[1739296760541,0.31586095,633.19,632.21,0.60666903]
[1739296760747,0.31586095,633.19,632.22,0.29031846]
[1739296763447,2.14235383,633.62,632.22,0.29031846]
[1739296763649,0.31565158,633.61,632.23,0.31634057]
[1739296763947,0.31565158,633.61,632.24,0.29031846]
[1739296765048,0.31565158,633.61,632.25,0.31633056]
[1739296765246,0.31565158,633.61,632.26,0.29026177]
[1739296765447,0.31565158,633.61,632.27,0.31632055]
[1739296765645,0.31565158,633.61,632.28,0.29026177]
[1739296766449,0.31565158,633.61,632.28,0.60657732]
[1739296766648,0.31565158,633.61,632.29,0.29026177]
[1739296766949,0.31565158,633.61,632.28,0.31631555]
[1739296767249,0.31565158,633.61,632.29,0.29024404]
[1739296768851,0.31565158,633.61,632.3,0.29024281]
[1739296769053,0.31565158,633.61,632.29,0.29024281]
[1739296769249,0.31565158,633.61,632.31,0.29024281]
[1739296769449,0.31565158,633.61,632.32,0.29024281]
[1739296769650,0.31565158,633.61,632.29,0.29024281]
[1739296770853,0.31565158,633.61,632.3,0.31630555]
[1739296771255,0.31565158,633.61,632.31,0.29024281]
[1739296780465,0.31565158,633.61,632.31,0.60654335]
[1739296780670,0.31565158,633.61,632.32,1.21062813]
[1739296780871,0.31565158,633.61,632.33,0.29024281]
[1739296781371,0.31565158,633.61,632.34,0.31628554]
[1739296781676,0.31565158,633.61,632.35,0.29024281]
[1739296781873,0.31565158,633.61,632.36,0.31627553]
[1739296782172,0.31565158,633.61,632.37,0.29024281]
[1739296782373,0.31565158,633.61,632.38,0.31626553]
[1739296782567,0.31565158,633.61,632.39,0.29024281]
[1739296782770,0.31565158,633.61,632.4,0.31625553]
[1739296783075,0.31565158,633.61,632.41,0.29024281]
[1739296787283,0.31565158,633.61,632.4,0.31625553]
[1739296787584,0.31565158,633.61,632.41,0.29020893]
[1739296788583,0.31565158,633.61,632.42,0.31624553]
[1739296788785,0.31565158,633.61,632.43,0.29018971]
[1739296796693,2.14235383,633.6,632.43,0.29018971]
[1739296796894,2.14235383,633.59,632.43,0.29018971]
[1739296797192,2.14235383,633.58,632.43,0.29018971]
[1739296797393,2.14235383,633.6,632.43,0.29018971]
[1739296797594,6.06540579,633.59,632.43,0.29018971]
[1739296797794,6.06540579,633.58,632.43,0.29018971]
[1739296797995,6.06540579,633.57,632.43,0.29018971]
[1739296798293,6.06540579,633.56,632.43,0.29018971]
[1739296798492,6.06540579,633.55,632.43,0.29018971]
[1739296798793,6.06540579,633.54,632.43,0.29018971]
[1739296799088,6.06540579,633.53,632.43,0.29018971]
[1739296799294,6.06540579,633.52,632.43,0.29018971]
[1739296799494,6.06540579,633.51,632.43,0.29018971]
[1739296799688,6.06540579,633.5,632.43,0.29018971]
[1739296799888,6.06540579,633.49,632.43,0.29018971]
[1739296800092,6.06540579,633.48,632.43,0.29018971]
[1739296800288,6.06540579,633.47,632.43,0.29018971]
[1739296800491,6.06540579,633.46,632.43,0.29018971]
[1739296800689,6.06540579,633.45,632.43,0.29018971]
[1739296800892,2.14235383,633.44,632.43,0.29018971]
[1739296801092,6.06540579,633.51,632.43,0.29018971]
[1739296801289,6.06540579,633.5,632.43,0.29018971]
[1739296801494,2.64330437,633.52,632.43,0.29018971]
[1739296801889,0.31565158,633.61,632.43,0.29018971]
[1739296802489,0.31565158,633.61,632.42,0.31624553]
[1739296802688,0.31565158,633.61,632.43,0.29024988]
[1739296802894,6.04701225,633.6,632.43,0.29024988]
[1739296803088,6.32142797,633.59,632.43,0.29024988]
[1739296803291,6.32142797,633.58,632.43,0.29024988]
[1739296803488,6.63709948,633.57,632.43,0.29024988]
[1739296803790,6.63710446,633.56,632.43,0.29024988]
[1739296803995,6.32142797,633.55,632.43,0.29024988]
[1739296804295,6.63711443,633.54,632.43,0.29024988]
[1739296804599,6.36270369,633.53,632.43,0.29024988]
[1739296804894,6.04701225,633.52,632.43,0.29024988]
[1739296805094,6.04701225,633.51,632.43,0.29024988]
[1739296805291,6.04701225,633.5,632.43,0.29024988]
[1739296805492,6.04701225,633.49,632.43,0.29024988]
[1739296805795,6.04701225,633.48,632.43,0.29024988]
[1739296805993,6.04701225,633.47,632.43,0.29024988]
[1739296806194,6.04701225,633.46,632.43,0.29024988]
[1739296806389,6.04701225,633.45,632.43,0.29024988]
[1739296806600,6.04701225,633.49,632.43,0.29024988]
[1739296806794,2.64330437,633.5,632.43,0.29024988]
[1739296806795,6.04701225,633.48,632.43,0.29024988]
[1739296806995,6.04701225,633.47,632.43,0.29024988]
[1739296807198,6.04701225,633.46,632.43,0.29024988]
[1739296807388,6.04701225,633.45,632.43,0.29024988]
[1739296807590,3.91123273,633.44,632.43,0.29024988]
[1739296807898,2.13577952,633.45,632.43,0.29024988]
[1739296808096,2.64330437,633.46,632.43,0.29024988]
[1739296809300,2.13577952,633.45,632.43,0.29024988]
[1739296809493,2.13577952,633.44,632.42,0.31624553]
[1739296809692,2.64330437,633.46,632.43,0.29024681]
[1739296810092,6.04701225,633.47,632.43,0.29024681]
[1739296810296,6.04701225,633.46,632.43,0.29024681]
[1739296810593,6.04701225,633.45,632.43,0.29024681]
[1739296810791,6.04701225,633.44,632.43,0.29024681]
[1739296810995,2.13577952,633.43,632.43,0.29024681]
[1739296811194,2.13577952,633.42,632.43,0.29024681]
[1739296811398,6.04701225,633.43,632.43,0.29024681]
[1739296811599,6.04701225,633.42,632.43,0.29024681]
[1739296811799,6.04701225,633.41,632.43,0.29024681]
[1739296811999,6.04701225,633.4,632.43,0.29024681]
[1739296812197,6.04701225,633.39,632.43,0.29024681]
[1739296812397,6.04701225,633.38,632.43,0.29024681]
[1739296812698,6.04701225,633.37,632.43,0.29024681]
[1739296812893,6.04701225,633.36,632.43,0.29024681]
[1739296813094,0.31569144,633.53,632.43,0.29024681]
[1739296813300,2.13577952,633.52,632.44,0.29024626]
[1739296813499,2.13577952,633.52,632.43,0.29024626]
[1739296813695,0.31569144,633.53,632.43,0.29024626]
[1739296815100,6.04701225,633.52,632.43,0.29024626]
[1739296815303,6.36271365,633.51,632.43,0.29024626]